fUSD/lending_fUSD_20260621
["ID","MTS","AMOUNT","RATE_DAILY","PERIOD"]
[425850297,1781993452000,-2414.0,0.00028612,10]
[425850302,1781993452000,-450.05,0.00028677,7]
[425850313,1781993452000,-450.05,0.00028838,2]
[425850305,1781993452000,-396.26,0.00028759,2]
[425850271,1781993452000,-1296.45114755,0.000281,2]
[425850304,1781993452000,-645.92,0.00028758,2]
[425850286,1781993452000,-519.49,0.00028355,2]
[425850292,1781993452000,-330.51,0.00028516,30]
[425850284,1781993452000,-330.51,0.00028355,2]
[425850290,1781993452000,-2597.67,0.000285,7]
[425850295,1781993452000,-450.05,0.00028516,30]
[425850285,1781993452000,-515.4,0.00028355,2]
[425850288,1781993452000,-331.28,0.00028355,2]
[425850289,1781993452000,-13262.4487117,0.00028499,2]
[425850294,1781993452000,-519.49,0.00028516,30]
[425850293,1781993452000,-515.4,0.00028516,30]
[425850287,1781993452000,-450.05,0.00028355,2]
[425850299,1781993452000,-330.51,0.00028677,7]
[425850296,1781993452000,-331.28,0.00028516,30]
[425850300,1781993452000,-515.4,0.00028677,7]
[425850291,1781993452000,-2370.48620157,0.00028505,2]
[425850303,1781993452000,-331.28,0.00028677,7]
[425850298,1781993452000,-1254.02,0.00028671,120]
[425850383,1781993453000,-921.49,0.000296,7]
[425850355,1781993453000,-168.64761391,0.00029232,2]
[425850353,1781993453000,-1017.16,0.00029183,30]
[425850354,1781993453000,-1017.16,0.0002922,30]
[425850356,1781993453000,-1254.02,0.00029247,120]
[425850357,1781993453000,-1017.16,0.00029257,30]
[425850358,1781993453000,-1017.16,0.00029293,30]
[425850352,1781993453000,-1017.16,0.00029147,30]
[425850360,1781993453000,-1017.16,0.0002933,30]
[425850359,1781993453000,-644.79446245,0.00029329,2]
[425850361,1781993453000,-1017.16,0.00029367,30]
[425850366,1781993453000,-2006.5941,0.0002945,2]
[425850362,1781993453000,-1017.16,0.00029403,30]
[425850364,1781993453000,-2000.0,0.0002945,2]
[425850365,1781993453000,-10000.0,0.0002945,2]
[425850367,1781993453000,-10005.1718,0.0002945,2]
[425850369,1781993453000,-5000.0,0.00029453,2]
[425850368,1781993453000,-9366.10435364,0.00029453,2]
[425850370,1781993453000,-5000.0,0.00029453,2]
[425850371,1781993453000,-5000.0,0.00029453,2]
[425850373,1781993453000,-1017.16,0.00029477,30]
[425850376,1781993453000,-1017.16,0.0002955,30]
[425850349,1781993453000,-1017.16,0.00029073,30]
[425850363,1781993453000,-1017.16,0.0002944,30]
[425850346,1781993453000,-519.55,0.00029,30]
[425850323,1781993453000,-151.0,0.00028876,30]
[425850344,1781993453000,-1017.16,0.00029,30]
[425850324,1781993453000,-527.0,0.00028876,30]
[425850328,1781993453000,-636.08,0.00028899,7]
[425850327,1781993453000,-64303.28838582,0.0002888,60]
[425850322,1781993453000,-151.0,0.00028876,30]
[425850325,1781993453000,-194.0,0.00028876,30]
[425850326,1781993453000,-160.0,0.00028876,30]
[425850329,1781993453000,-10000.0,0.000289,30]
[425850331,1781993453000,-174.0,0.000289,2]
[425850333,1781993453000,-6717.0,0.00029,2]
[425850336,1781993453000,-7000.0,0.00029,3]
[425850337,1781993453000,-9022.0,0.00029,2]
[425850343,1781993453000,-500.0,0.00029,2]
[425850332,1781993453000,-350489.15913997,0.00029,2]
[425850330,1781993453000,-589.06618482,0.000289,2]
[425850334,1781993453000,-5000.0,0.00029,2]
[425850339,1781993453000,-1054.0,0.00029,2]
[425850340,1781993453000,-160.0,0.00029,30]
[425850335,1781993453000,-5000.0,0.00029,30]
[425850342,1781993453000,-216.28381402,0.00029,30]
[425850347,1781993453000,-450.12,0.00029,30]
[425850350,1781993453000,-1017.16,0.0002911,30]
[425850345,1781993453000,-515.49,0.00029,30]
[425850341,1781993453000,-928780.37142726,0.00029,7]
[425850348,1781993453000,-1017.16,0.00029037,30]
[425850338,1781993453000,-10000.0,0.00029,30]
[425850372,1781993453000,-5000.0,0.00029453,2]
[425850351,1781993453000,-509.0,0.0002913,10]
[425850374,1781993453000,-471.62,0.000295,7]
[425850416,1781993453000,-200.0,0.000299,10]
[425850407,1781993453000,-335.0,0.00029876,30]
[425850418,1781993453000,-1017.16,0.00029953,30]
[425850412,1781993453000,-160.0,0.00029876,30]
[425850411,1781993453000,-194.0,0.00029876,30]
[425850417,1781993453000,-1017.16,0.00029917,30]
[425850408,1781993453000,-151.0,0.00029876,30]
[425850413,1781993453000,-1017.16,0.0002988,30]
[425850409,1781993453000,-151.0,0.00029876,30]
[425850410,1781993453000,-527.0,0.00029876,30]
[425850415,1781993453000,-226.73544188,0.000299,2]
[425850398,1781993453000,-1017.16,0.00029807,30]
[425850420,1781993453000,-700.0,0.0002997,2]
[425850421,1781993453000,-400.0,0.0002997,2]
[425850425,1781993453000,-40146.23870724,0.0003,30]
[425850429,1781993453000,-5000.0,0.0003,31]
[425850422,1781993453000,-400.0,0.0002997,2]
[425850424,1781993453000,-1017.16,0.0002999,30]
[425850428,1781993453000,-564878.63047351,0.0003,2]
[425850426,1781993453000,-590.02667031,0.0003,4]
[425850427,1781993453000,-199.68709396,0.0003,7]
[425850423,1781993453000,-3218.0,0.00029988,10]
[425850430,1781993453000,-5799.75136848,0.0003,3]
[425850375,1781993453000,-1017.16,0.00029513,30]
[425850419,1781993453000,-700.0,0.0002997,2]
[425850405,1781993453000,-153.0,0.00029871,30]
[425850414,1781993453000,-169.97,0.00029896,3]
[425850403,1781993453000,-292.0,0.00029871,30]
[425850399,1781993453000,-1017.16,0.00029843,30]
[425850381,1781993453000,-988.0687676,0.0002957,2]
[425850382,1781993453000,-1017.16,0.00029587,30]
[425850379,1781993453000,-151.0,0.00029551,2]
[425850378,1781993453000,-151.0,0.00029551,2]
[425850380,1781993453000,-151.0,0.00029551,2]
[425850388,1781993453000,-1254.02,0.00029685,120]
[425850386,1781993453000,-1017.16,0.0002966,30]
[425850387,1781993453000,-1699.18,0.00029683,7]
[425850384,1781993453000,-1017.16,0.00029623,30]
[425850393,1781993453000,-700.0,0.0002977,2]
[425850394,1781993453000,-500.0,0.0002977,2]
[425850385,1781993453000,-1386.0,0.0002964,3]
[425850377,1781993453000,-6145.76780906,0.0002955,7]
[425850404,1781993453000,-512.0,0.00029871,30]
[425850392,1781993453000,-700.0,0.0002977,2]
[425850389,1781993453000,-1017.16,0.00029697,30]
[425850390,1781993453000,-190.07,0.000297,7]
[425850396,1781993453000,-279415.22758941,0.000298,30]
[425850406,1781993453000,-155.0,0.00029871,30]
[425850397,1781993453000,-94493.6534601,0.000298,30]
[425850400,1781993453000,-156.0,0.00029871,30]
[425850391,1781993453000,-1017.16,0.00029733,30]
[425850401,1781993453000,-154.0,0.00029871,30]
[425850402,1781993453000,-155.0,0.00029871,30]
[425850395,1781993453000,-1017.16,0.0002977,30]
[425850467,1781993454000,-157.62000848,0.00030137,14]
[425850456,1781993454000,-30106.00205243,0.0003013,2]
[425850468,1781993454000,-157.62000847,0.00030137,14]
[425850471,1781993454000,-1800.0,0.00030137,30]
[425850473,1781993454000,-411.94,0.00030137,120]
[425850461,1781993454000,-242.56,0.0003013,2]
[425850464,1781993454000,-5000.0,0.00030137,2]
[425850458,1781993454000,-2000.0,0.0003013,2]
[425850457,1781993454000,-56265.941601,0.0003013,2]
[425850459,1781993454000,-181767.66579405,0.0003013,7]
[425850472,1781993454000,-567.93,0.00030137,30]
[425850466,1781993454000,-176.57,0.00030137,2]
[425850469,1781993454000,-157.62000847,0.00030137,14]
[425850486,1781993454000,-170.69312193,0.0003014,4]
[425850474,1781993454000,-450.31925999,0.00030137,120]
[425850476,1781993454000,-186.98459191,0.00030137,30]
[425850475,1781993454000,-7593.0,0.00030137,120]
[425850479,1781993454000,-150.0,0.00030137,120]
[425850477,1781993454000,-150.0,0.00030137,5]
[425850480,1781993454000,-170.69312193,0.0003014,4]
[425850484,1781993454000,-170.69312193,0.0003014,4]
[425850485,1781993454000,-170.69312193,0.0003014,4]
[425850478,1781993454000,-150.0,0.00030137,5]
[425850488,1781993454000,-170.69312193,0.0003014,4]
[425850482,1781993454000,-170.69312193,0.0003014,4]
[425850470,1781993454000,-157.62000847,0.00030137,14]
[425850463,1781993454000,-5000.0,0.00030137,2]
[425850431,1781993454000,-1272.24,0.0003,2]
[425850465,1781993454000,-5000.0,0.00030137,2]
[425850481,1781993454000,-170.69312193,0.0003014,4]
[425850438,1781993454000,-25000.0,0.0003,2]
[425850434,1781993454000,-49000.0,0.0003,3]
[425850439,1781993454000,-2500.0,0.0003,2]
[425850432,1781993454000,-15000.0,0.0003,2]
[425850441,1781993454000,-1447.36,0.0003,2]
[425850435,1781993454000,-216.28381402,0.0003,30]
[425850440,1781993454000,-2500.0,0.0003,2]
[425850436,1781993454000,-12500.0,0.0003,2]
[425850437,1781993454000,-22500.0,0.0003,2]
[425850433,1781993454000,-50000.0,0.0003,2]
[425850443,1781993454000,-1185.10228652,0.0003,120]
[425850460,1781993454000,-218.3,0.0003013,2]
[425850445,1781993454000,-22500.0,0.0003,2]
[425850442,1781993454000,-4000.0,0.0003,2]
[425850446,1781993454000,-1017.16,0.00030027,30]
[425850451,1781993454000,-12500.0,0.00030125,2]
[425850444,1781993454000,-1185.10228652,0.0003,2]
[425850447,1781993454000,-1017.16,0.00030063,30]
[425850449,1781993454000,-15000.0,0.000301,2]
[425850450,1781993454000,-1017.16,0.000301,30]
[425850448,1781993454000,-969.62,0.00030089,30]
[425850454,1781993454000,-100973.49870435,0.0003013,7]
[425850453,1781993454000,-22500.0,0.00030125,2]
[425850455,1781993454000,-1923.03743876,0.0003013,2]
[425850462,1781993454000,-270.02339087,0.00030135,2]
[425850452,1781993454000,-22500.0,0.00030125,2]
[425850487,1781993454000,-170.69312193,0.0003014,4]
[425850483,1781993454000,-170.69312193,0.0003014,4]
[425850524,1781993454000,-178.69919662,0.0003014,4]
[425850521,1781993454000,-178.69919662,0.0003014,4]
[425850517,1781993454000,-178.69919662,0.0003014,4]
[425850519,1781993454000,-178.69919662,0.0003014,4]
[425850544,1781993454000,-200.0,0.00030219,2]
[425850535,1781993454000,-200.0,0.00030219,2]
[425850528,1781993454000,-250.0,0.00030202,7]
[425850530,1781993454000,-150.0,0.00030206,2]
[425850533,1781993454000,-200.0,0.00030219,2]
[425850532,1781993454000,-262.0,0.00030219,2]
[425850531,1781993454000,-500.0,0.00030219,2]
[425850529,1781993454000,-250.0,0.00030202,7]
[425850525,1781993454000,-178.69919662,0.0003014,4]
[425850518,1781993454000,-178.69919662,0.0003014,4]
[425850526,1781993454000,-178.69919662,0.0003014,4]
[425850534,1781993454000,-200.0,0.00030219,2]
[425850537,1781993454000,-200.0,0.00030219,2]
[425850536,1781993454000,-200.0,0.00030219,2]
[425850539,1781993454000,-200.0,0.00030219,2]
[425850538,1781993454000,-200.0,0.00030219,2]
[425850545,1781993454000,-200.0,0.00030219,2]
[425850540,1781993454000,-200.0,0.00030219,2]
[425850543,1781993454000,-200.0,0.00030219,2]
[425850541,1781993454000,-200.0,0.00030219,2]
[425850542,1781993454000,-200.0,0.00030219,2]
[425850546,1781993454000,-200.0,0.00030219,2]
[425850490,1781993454000,-170.69312193,0.0003014,4]
[425850527,1781993454000,-921.59736879,0.0003016,120]
[425850515,1781993454000,-178.69919662,0.0003014,4]
[425850520,1781993454000,-178.69919662,0.0003014,4]
[425850514,1781993454000,-178.69919662,0.0003014,4]
[425850495,1781993454000,-170.69312193,0.0003014,4]
[425850491,1781993454000,-170.69312193,0.0003014,4]
[425850493,1781993454000,-170.69312193,0.0003014,4]
[425850489,1781993454000,-170.69312193,0.0003014,4]
[425850494,1781993454000,-170.69312193,0.0003014,4]
[425850492,1781993454000,-170.69312193,0.0003014,4]
[425850496,1781993454000,-170.69312193,0.0003014,4]
[425850498,1781993454000,-150.57931199,0.0003014,4]
[425850522,1781993454000,-178.69919662,0.0003014,4]
[425850499,1781993454000,-150.57931199,0.0003014,4]
[425850500,1781993454000,-150.57931199,0.0003014,4]
[425850504,1781993454000,-150.57931199,0.0003014,4]
[425850506,1781993454000,-150.57931199,0.0003014,4]
[425850497,1781993454000,-170.69312193,0.0003014,4]
[425850505,1781993454000,-150.57931199,0.0003014,4]
[425850510,1781993454000,-178.69919662,0.0003014,4]
[425850523,1781993454000,-178.69919662,0.0003014,4]
[425850516,1781993454000,-178.69919662,0.0003014,4]
[425850513,1781993454000,-178.69919662,0.0003014,4]
[425850507,1781993454000,-150.57931199,0.0003014,4]
[425850508,1781993454000,-150.57931199,0.0003014,4]
[425850512,1781993454000,-178.69919662,0.0003014,4]
[425850502,1781993454000,-150.57931199,0.0003014,4]
[425850509,1781993454000,-178.69919662,0.0003014,4]
[425850501,1781993454000,-150.57931199,0.0003014,4]
[425850511,1781993454000,-178.69919662,0.0003014,4]
[425850503,1781993454000,-150.57931199,0.0003014,4]
[425850586,1781993455000,-22500.0,0.00030375,2]
[425850596,1781993455000,-151.0,0.00030384,2]
[425850597,1781993455000,-151.0,0.00030384,2]
[425850585,1781993455000,-16127.71,0.00030375,2]
[425850581,1781993455000,-1000.0,0.0003033,2]
[425850582,1781993455000,-1815.92,0.0003033,2]
[425850584,1781993455000,-508.06,0.00030334,2]
[425850579,1781993455000,-921.49,0.000303,7]
[425850573,1781993455000,-22500.0,0.0003025,2]
[425850578,1781993455000,-785.0,0.00030292,2]
[425850577,1781993455000,-785.0,0.00030292,2]
[425850587,1781993455000,-151.29,0.00030378,2]
[425850608,1781993455000,-2500.0,0.000305,2]
[425850588,1781993455000,-151.0,0.00030384,2]
[425850592,1781993455000,-151.0,0.00030384,2]
[425850593,1781993455000,-151.0,0.00030384,2]
[425850591,1781993455000,-151.0,0.00030384,2]
[425850595,1781993455000,-151.0,0.00030384,2]
[425850594,1781993455000,-151.0,0.00030384,2]
[425850600,1781993455000,-257.5514792,0.0003042,2]
[425850599,1781993455000,-242.55796849,0.00030404,7]
[425850598,1781993455000,-218.3,0.00030404,7]
[425850601,1781993455000,-509.0,0.00030435,12]
[425850604,1781993455000,-178.69,0.00030442,4]
[425850580,1781993455000,-250.0,0.00030328,16]
[425850589,1781993455000,-151.0,0.00030384,2]
[425850575,1781993455000,-824.72482748,0.00030292,2]
[425850547,1781993455000,-200.0,0.00030219,2]
[425850576,1781993455000,-785.0,0.00030292,2]
[425850554,1781993455000,-200.0,0.00030219,2]
[425850558,1781993455000,-500.0,0.00030219,2]
[425850552,1781993455000,-200.0,0.00030219,2]
[425850549,1781993455000,-200.0,0.00030219,2]
[425850550,1781993455000,-200.0,0.00030219,2]
[425850556,1781993455000,-180.0,0.00030219,2]
[425850548,1781993455000,-200.0,0.00030219,2]
[425850559,1781993455000,-500.0,0.00030219,2]
[425850551,1781993455000,-200.0,0.00030219,2]
[425850557,1781993455000,-500.0,0.00030219,2]
[425850555,1781993455000,-200.0,0.00030219,2]
[425850553,1781993455000,-200.0,0.00030219,2]
[425850583,1781993455000,-1027.69,0.0003033,2]
[425850562,1781993455000,-500.0,0.00030219,2]
[425850568,1781993455000,-3573.12,0.0003025,2]
[425850566,1781993455000,-500.0,0.00030219,2]
[425850571,1781993455000,-2500.0,0.0003025,2]
[425850565,1781993455000,-500.0,0.00030219,2]
[425850572,1781993455000,-2500.0,0.0003025,2]
[425850561,1781993455000,-500.0,0.00030219,2]
[425850564,1781993455000,-500.0,0.00030219,2]
[425850569,1781993455000,-22500.0,0.0003025,2]
[425850567,1781993455000,-186.4,0.00030239,2]
[425850560,1781993455000,-500.0,0.00030219,2]
[425850570,1781993455000,-25000.0,0.0003025,2]
[425850574,1781993455000,-1254.02,0.0003026,120]
[425850563,1781993455000,-500.0,0.00030219,2]
[425850603,1781993455000,-150.57,0.00030442,4]
[425850590,1781993455000,-151.0,0.00030384,2]
[425850609,1781993455000,-22500.0,0.000305,2]
[425850639,1781993455000,-22500.0,0.00030625,2]
[425850638,1781993455000,-200.379999,0.000306,11]
[425850642,1781993455000,-2500.0,0.0003075,2]
[425850643,1781993455000,-2500.0,0.0003075,2]
[425850646,1781993455000,-1360.0,0.00030809,2]
[425850650,1781993455000,-3647.0,0.0003081,2]
[425850649,1781993455000,-1215.0,0.0003081,2]
[425850641,1781993455000,-25000.0,0.0003075,2]
[425850640,1781993455000,-762.88,0.00030685,30]
[425850648,1781993455000,-1229.0,0.00030809,2]
[425850652,1781993455000,-2370.48620157,0.0003081,2]
[425850645,1781993455000,-250.0,0.000308,30]
[425850636,1781993455000,-500.0,0.00030543,2]
[425850651,1781993455000,-6081.0,0.0003081,2]
[425850644,1781993455000,-22500.0,0.0003075,2]
[425850656,1781993455000,-155.0,0.00030871,30]
[425850657,1781993455000,-292.0,0.00030871,30]
[425850658,1781993455000,-512.0,0.00030871,30]
[425850655,1781993455000,-154.0,0.00030871,30]
[425850653,1781993455000,-207.0,0.0003084,30]
[425850661,1781993455000,-22500.0,0.00030875,2]
[425850654,1781993455000,-156.0,0.00030871,30]
[425850660,1781993455000,-155.0,0.00030871,30]
[425850662,1781993455000,-335.0,0.00030876,30]
[425850659,1781993455000,-153.0,0.00030871,30]
[425850602,1781993455000,-170.69,0.00030442,4]
[425850647,1781993455000,-383.0,0.00030809,2]
[425850634,1781993455000,-500.0,0.00030543,2]
[425850637,1781993455000,-162.0,0.00030576,3]
[425850632,1781993455000,-500.0,0.00030543,2]
[425850607,1781993455000,-2500.0,0.000305,2]
[425850606,1781993455000,-25000.0,0.000305,2]
[425850605,1781993455000,-190.07,0.000305,7]
[425850611,1781993455000,-5058.88277929,0.00030542,2]
[425850610,1781993455000,-152.0,0.00030537,4]
[425850617,1781993455000,-329.0,0.00030543,2]
[425850614,1781993455000,-5000.0,0.00030542,2]
[425850620,1781993455000,-200.0,0.00030543,2]
[425850613,1781993455000,-5000.0,0.00030542,2]
[425850615,1781993455000,-5000.0,0.00030542,2]
[425850612,1781993455000,-5000.0,0.00030542,2]
[425850635,1781993455000,-500.0,0.00030543,2]
[425850619,1781993455000,-200.0,0.00030543,2]
[425850616,1781993455000,-5652.28759123,0.00030542,2]
[425850630,1781993455000,-200.0,0.00030543,2]
[425850633,1781993455000,-500.0,0.00030543,2]
[425850628,1781993455000,-200.0,0.00030543,2]
[425850627,1781993455000,-200.0,0.00030543,2]
[425850618,1781993455000,-200.0,0.00030543,2]
[425850631,1781993455000,-200.0,0.00030543,2]
[425850629,1781993455000,-200.0,0.00030543,2]
[425850625,1781993455000,-200.0,0.00030543,2]
[425850624,1781993455000,-200.0,0.00030543,2]
[425850621,1781993455000,-200.0,0.00030543,2]
[425850623,1781993455000,-200.0,0.00030543,2]
[425850622,1781993455000,-200.0,0.00030543,2]
[425850626,1781993455000,-200.0,0.00030543,2]
[425850669,1781993456000,-1498.67664556,0.000309,15]
[425850664,1781993456000,-151.0,0.00030876,30]
[425850663,1781993456000,-151.0,0.00030876,30]
[425850667,1781993456000,-160.0,0.00030876,30]
[425850673,1781993456000,-36637.66148358,0.000309,6]
[425850668,1781993456000,-165.0,0.0003088,30]
[425850666,1781993456000,-194.0,0.00030876,30]
[425850665,1781993456000,-527.0,0.00030876,30]
[425850674,1781993456000,-1204.37180863,0.000309,6]
[425850672,1781993456000,-178.69,0.000309,4]
[425850671,1781993456000,-150.57,0.000309,4]
[425850670,1781993456000,-170.69,0.000309,4]
[425850684,1781993457000,-519.47,0.00027711,7]
[425850685,1781993457000,-340.23,0.00027711,7]
[425850691,1781993457000,-340.23,0.00028033,30]
[425850690,1781993457000,-519.47,0.00028033,30]
[425850679,1781993457000,-200.0,0.00025936,2]
[425850677,1781993457000,-200.0,0.00024426,2]
[425850682,1781993457000,-340.23,0.0002755,30]
[425850676,1781993457000,-200.0,0.00023671,2]
[425850678,1781993457000,-200.0,0.00025181,2]
[425850686,1781993457000,-409.85,0.00027711,7]
[425850680,1781993457000,-200.0,0.00026691,2]
[425850675,1781993457000,-200.0,0.00022915,2]
[425850681,1781993457000,-519.47,0.0002755,30]
[425850697,1781993457000,-340.23,0.00028677,7]
[425850698,1781993457000,-8347.82762451,0.000309,6]
[425850696,1781993457000,-340.23,0.00028516,30]
[425850695,1781993457000,-340.23,0.00028355,2]
[425850692,1781993457000,-409.85,0.00028033,30]
[425850693,1781993457000,-519.47,0.00028194,7]
[425850688,1781993457000,-340.23,0.00027872,2]
[425850689,1781993457000,-409.85,0.00027872,2]
[425850683,1781993457000,-409.85,0.0002755,30]
[425850694,1781993457000,-340.23,0.00028194,7]
[425850687,1781993457000,-519.47,0.00027872,2]
[425850699,1781993458000,-317.21373338,0.000309,6]
[425850700,1781993477000,150.0,0.00012827,2]
[425850708,1781993537000,150.0,0.00012826,2]
[425850714,1781993588000,166.66,0.00021937,30]
[425850716,1781993788000,-150.0,0.00013224,2]
[425850718,1781993841000,-171.35511962,0.00013224,2]
[425850719,1781993894000,-160.0,0.00013225,2]
[425850720,1781993930000,-160.0,0.00013226,2]
[425850721,1781993948000,-4495.37,0.00013699,2]
[425850722,1781994001000,-216.28381402,0.00013898,2]
[425850724,1781994055000,-151.0,0.00013898,2]
[425850725,1781994108000,-500.0,0.00013798,2]
[425850726,1781994162000,-316.0,0.00013807,2]
[425850729,1781994216000,-500.0,0.00013798,2]
[425850730,1781994269000,-318.0,0.00013807,2]
[425850732,1781994403000,166.66,0.00012996,2]
[425850731,1781994403000,166.66,0.00012728,2]
[425850734,1781994404000,-154.12184,0.00013493,2]
[425850733,1781994404000,-166.66,0.00013263,2]
[425850736,1781994431000,-166.66,0.00013531,2]
[425850735,1781994431000,-45.87816,0.00013493,2]
[425850737,1781994431000,-328.0076,0.00013698,2]
[425850738,1781994431000,-150.0,0.00013756,2]
[425850739,1781994431000,-166.66,0.00013799,2]
[425850742,1781994431000,-198.20184236,0.00013813,2]
[425850741,1781994431000,-500.0,0.00013813,2]
[425850743,1781994431000,-471.45371254,0.00013813,2]
[425850740,1781994431000,-150.0,0.00013812,2]
[425850745,1781994431000,-208.70781652,0.00013813,2]
[425850753,1781994431000,-500.0,0.00013813,2]
[425850751,1781994431000,-500.0,0.00013813,2]
[425850752,1781994431000,-500.0,0.00013813,2]
[425850750,1781994431000,-159.47854157,0.00013813,2]
[425850744,1781994431000,-500.0,0.00013813,2]
[425850748,1781994431000,-500.0,0.00013813,2]
[425850747,1781994431000,-418.10716188,0.00013813,2]
[425850746,1781994431000,-608.4097449,0.00013813,2]
[425850749,1781994431000,-500.0,0.00013813,2]
[425850755,1781994432000,-500.0,0.00013813,2]
[425850756,1781994432000,-500.0,0.00013813,2]
[425850757,1781994432000,-500.0,0.00013813,2]
[425850758,1781994432000,-500.0,0.00013813,2]
[425850759,1781994432000,-500.0,0.00013813,2]
[425850760,1781994432000,-500.0,0.00013813,2]
[425850764,1781994432000,-453.53259691,0.00013813,2]
[425850763,1781994432000,-500.0,0.00013813,2]
[425850762,1781994432000,-500.0,0.00013813,2]
[425850761,1781994432000,-500.0,0.00013813,2]
[425850765,1781994432000,-500.0,0.00013813,2]
[425850754,1781994432000,-500.0,0.00013813,2]
[425850769,1781994432000,-500.0,0.00013813,2]
[425850767,1781994432000,-500.0,0.00013813,2]
[425850770,1781994432000,-500.0,0.00013813,2]
[425850768,1781994432000,-500.0,0.00013813,2]
[425850771,1781994432000,-500.0,0.00013813,2]
[425850773,1781994432000,-500.0,0.00013813,2]
[425850772,1781994432000,-500.0,0.00013813,2]
[425850774,1781994432000,-500.0,0.00013813,2]
[425850776,1781994432000,-500.0,0.00013813,2]
[425850777,1781994432000,-500.0,0.00013813,2]
[425850766,1781994432000,-500.0,0.00013813,2]
[425850775,1781994432000,-500.0,0.00013813,2]
[425850778,1781994432000,-422.63889932,0.00013813,2]
[425850779,1781994437000,246.1041651,0.00013763,7]
[425850780,1781994444000,174.72279326,0.00013713,2]
[425850781,1781994445000,200.0,0.000138,5]
[425850784,1781994469000,164.29,0.00013498,2]
[425850785,1781994501000,2267.14696564,0.000138,2]
[425850788,1781994627000,-692.10533946,0.000138,2]
[425850881,1781994634000,-311.0,0.00013815,2]
[425850880,1781994634000,-313.0,0.00013815,2]
[425850882,1781994634000,-311.0,0.00013815,2]
[425850878,1781994634000,-311.0,0.00013815,2]
[425850879,1781994634000,-318.0,0.00013815,2]
[425850876,1781994634000,-316.0,0.00013815,2]
[425850874,1781994634000,-317.0,0.00013815,2]
[425850877,1781994634000,-314.0,0.00013815,2]
[425850875,1781994634000,-311.0,0.00013815,2]
[425850873,1781994634000,-318.0,0.00013815,2]
[425850872,1781994634000,-209.10077985,0.00013814,2]
[425850870,1781994634000,-500.0,0.00013814,2]
[425850868,1781994634000,-500.0,0.00013814,2]
[425850869,1781994634000,-330.01759878,0.00013814,2]
[425850867,1781994634000,-604.98069387,0.00013814,2]
[425850866,1781994634000,-447.32011992,0.00013814,2]
[425850864,1781994634000,-500.0,0.00013814,2]
[425850865,1781994634000,-500.0,0.00013814,2]
[425850884,1781994634000,-1602.69818379,0.00013852,2]
[425850861,1781994634000,-600.0,0.00013808,2]
[425850862,1781994634000,-600.0,0.00013813,2]
[425850860,1781994634000,-163.76,0.000138,2]
[425850871,1781994634000,-500.0,0.00013814,2]
[425850863,1781994634000,-390.1019425,0.00013813,2]
[425850886,1781994634000,-400.20958279,0.00013852,2]
[425850885,1781994634000,-304.0,0.00013852,2]
[425850883,1781994634000,-3464.1,0.00013815,2]
[425850907,1781994634000,-2904.29869177,0.00013927,2]
[425850908,1781994634000,-13984.30188232,0.00013927,2]
[425850905,1781994634000,-160.0,0.00013903,2]
[425850904,1781994634000,-400.0,0.000139,5]